Cogmind - Beta 13 @@@ ROGUE MODE // 2024.05.26 @ 22:20:55 Player: JackZewap Result: Core destroyed Performance ------------- Evolutions (4) 2000 Regions Visited (10) 2000 Robots Destroyed (98) 490 Value Destroyed (3818) 3818 Prototype IDs (35) 700 Alien Tech Used (0) 0 Bonus (1341) 1341 TOTAL SCORE: 10349 Bonus ------- High Alert Combat Kills 341 Entered Garrisons 200 Entered DSFs 500 Aligned with FarCom 300 Cogmind --------- Core Integrity 0/850 Matter 13/300 Energy 99/100 System Corruption 4% Temperature Cool (0) Movement Core (50) Location -6/Extension Parts ------- > --- POWER (2) -------- (None) > --- PROPULSION (4) --- (None) > --- UTILITY (6) ------ Enhanced Optical Array Graphene Brace Hacking Suite > --- WEAPON (3) ------- (None) > --- INVENTORY (5) ---- Advanced Sensor Array Advanced Melee Analysis Suite Cloak of Protection Hacking Suite Long-range Tractor Beam Peak State ------------ > --- POWER ------------ Angular Momentum Engine Fusion Compressor > --- PROPULSION ------- Light Treads Armored Treads Improved Medium Treads Improved Medium Treads > --- UTILITY ---------- Cargo Storage Unit Enhanced Optical Array Advanced Terrain Scanner Advanced Terrain Scan Processor Hacking Suite > --- WEAPON ----------- Minigun Enhanced Gauss Cannon Remote Datajack > --- INVENTORY -------- Improved Medium Treads Improved Medium Treads Improved Medium Treads Advanced Heat Sink Advanced Cooling System High-capacity Storage Unit Large Battery Energy Well High-capacity Matter Pod Improved Trap Scanner Enhanced Optical Array Enhanced Optical Array Enhanced Optical Array Improved Terrain Scanner Recoil Stabilizer Matter Filter Weapon Cycler Cloak of Protection Layered Light Armor Plating Reactive Plating Reactive Plating Powered Armor Powered Armor Graphene Brace EM Disruption Field Hacking Suite Long-range Tractor Beam Minigun Heavy Machine Gun Shock Bomb Launcher [Rating: 68] Favorites ----------- Power Light Nuclear Core Engine Reinforced Deuterium Engine Power Core Light Nuclear Core Propulsion Light Treads Treads Light Treads Leg Aluminum Leg Wheel Compact Wheel Hover Unit Improved Hover Unit Utility High-capacity Storage Unit Device Improved Heat Sink Storage High-capacity Storage Unit Processor Advanced Targeting Computer Hackware Hacking Suite Protection Powered Armor Weapon Enhanced Gauss Cannon Energy Gun Heavy Particle Gun Ballistic Gun Light Assault Rifle Ballistic Cannon Enhanced Gauss Cannon Launcher Shock Bomb Launcher Special Weapon Remote Datajack Build | -11 -10 -10 -10 -9 -8 -7 -7 -7 -6 -6 ------- Run | Yrd Mat Min Exi Min Mat Fac DSF Gar Fac Ext Slots Evolved 8 | . . . . . 4 2 . . 2 . Power 1 | . . . . . 1 . . . . . Propulsion 2 | . . . . . 2 . . . . . Utility 4 | . . . . . 1 1 . . 2 . Weapon 1 | . . . . . . 1 . . . . Parts Attached 135 | 6 8 2 . . 58 2 18 15 26 . Power 17 | 1 1 . . . 7 . 2 5 1 . Engine 13 | 1 1 . . . 4 . 2 5 . . Core 4 | . . . . . 3 . . . 1 . Reactor . | . . . . . . . . . . . Propulsion 43 | 2 3 . . . 27 . 5 3 3 . Treads 29 | 2 3 . . . 13 . 5 3 3 . Leg 9 | . . . . . 9 . . . . . Wheel 4 | . . . . . 4 . . . . . Hover 1 | . . . . . 1 . . . . . Flight . | . . . . . . . . . . . Utility 40 | 1 2 1 . . 10 1 4 5 16 . Device 17 | . . 1 . . 4 . 1 3 8 . Storage 4 | 1 1 . . . 1 . . . 1 . Processor 5 | . . . . . . . 1 . 4 . Hackware 2 | . . . . . . . . . 2 . Protection 12 | . 1 . . . 5 1 2 2 1 . Artifact . | . . . . . . . . . . . Weapon 35 | 2 2 1 . . 14 1 7 2 6 . Energy Gun 8 | . . . . . 6 1 1 . . . Energy Cannon . | . . . . . . . . . . . Ballistic Gun 20 | 2 2 1 . . 7 . 3 2 3 . Ballistic Cannon 4 | . . . . . . . 3 . 1 . Launcher 1 | . . . . . . . . . 1 . Special Weapon 2 | . . . . . 1 . . . 1 . Impact Weapon . | . . . . . . . . . . . Slashing Weapon . | . . . . . . . . . . . Piercing Weapon . | . . . . . . . . . . . Special Melee Weapon . | . . . . . . . . . . . Unidentified Prototypes 3 | . . . . . 3 . . . . . Parts Lost 30 | . 1 . . . 10 . 2 4 13 . Power 5 | . . . . . 2 . 1 . 2 . Propulsion 11 | . . . . . 4 . . 1 6 . Utility 8 | . 1 . . . 2 . 1 1 3 . Weapon 6 | . . . . . 2 . . 2 2 . Highest Loss Streak 8 | . 1 . . . 5 . 2 4 8 . To Critical Strikes . | . . . . . . . . . . . Average Slot Usage (%) 89 | . 93 96 100 100 95 92 93 98 77 20 Engine 9 | . 14 14 14 14 6 . 6 14 6 . Core 3 | . . . . . 11 7 3 . . . Treads 23 | . 28 28 28 28 15 30 30 29 22 . Leg 3 | . . . . . 15 . . . . . Device 8 | . . 10 14 14 14 15 11 5 6 6 Storage 8 | . 14 14 14 14 9 7 7 7 5 . Processor 3 | . . . . . . . 3 7 7 6 Hackware 1 | . . . . . . . . . 5 6 Protection 4 | . 7 . . . 2 7 6 8 2 . Energy Gun 2 | . . . . . 9 15 3 . . . Ballistic Gun 10 | . 28 28 28 28 7 7 1 2 8 . Ballistic Cannon 6 | . . . . . . . 17 19 4 . Naked Turns . | . . . . . . . . . . . Heaviest Build 205 | 11 21 18 18 18 65 58 103 109 205 1 Greatest Support 109 | 40 40 40 40 40 89 89 109 100 100 3 Greatest Overweight (x) 5 | . . . . . 5 . 1 1 2 . Average Overweight (x) . | . . . . . . . . . . . Largest Inventory Capacity 30 | 8 10 10 10 10 20 20 20 20 30 5 Average Capacity 18 | 7 8 10 10 10 19 20 20 20 26 5 Most Carried 30 | . 10 10 10 10 20 19 20 20 30 5 Average Carried 16 | . 5 9 10 10 16 18 19 19 24 5 Final Capacity 20 | 8 10 10 10 10 20 20 20 20 5 5 Final Carried 20 | . 10 10 10 10 20 18 19 20 5 5 Class Distribution -------------------- 38% | Mutant 19% | Skirmisher 17% | Hauler-Skirmisher 15% | Scavenger-Mutant 3% | Hauler-Tank Dominant Class ---------------- Mutant | -10/Materials Mutant | -10/Mines Mutant | -10/Exiles Mutant | -9/Mines Scavenger-Mutant | -8/Materials Skirmisher | -7/Factory Skirmisher | -7/DSF Skirmisher | -7/Garrison Hauler-Skirmisher | -6/Factory Mutant | -6/Extension Resources | -11 -10 -10 -10 -9 -8 -7 -7 -7 -6 -6 ----------- Run | Yrd Mat Min Exi Min Mat Fac DSF Gar Fac Ext Matter Collected 3792 | 167 394 79 . . 922 . 477 1449 304 . Remotely 392 | . . . . . . . 327 65 . . Salvage Created 3338 | . 387 50 . . 1736 . 404 578 183 . Parts 177 | . 31 6 . . 90 . 13 29 8 . Haulers Intercepted 6 | . 1 . . . 5 . . . . . Recyclers Shooed 2 | . 1 . . . 1 . . . . . Parts Field Recycled . | . . . . . . . . . . . Retrieved Matter . | . . . . . . . . . . . Parts Self-Destructed . | . . . . . . . . . . . Prevented . | . . . . . . . . . . . Kills | -11 -10 -10 -10 -9 -8 -7 -7 -7 -6 -6 ------- Run | Yrd Mat Min Exi Min Mat Fac DSF Gar Fac Ext Combat Hostiles Destroyed 78 | . 10 3 . . 31 . 10 18 6 . Melee 1 | . . . . . . . . . 1 . Guns 44 | . 10 3 . . 28 . 1 . 2 . Cannons 30 | . . . . . . . 9 18 3 . AOE 3 | . . . . . 3 . . . . . Classes Destroyed 14 | . 6 . . . 5 . 1 1 1 . Worker 1 | . . . . . 1 . . . . . Builder 1 | . . . . . 1 . . . . . Tunneler 1 | . 1 . . . . . . . . . Hauler 6 | . 1 . . . 5 . . . . . Operator 6 | . 3 . . . 3 . . . . . Watcher 5 | . 2 . . . 2 . . . 1 . Swarmer 20 | . 7 3 . . 4 . 6 . . . Grunt 38 | . 3 . . . 18 . 3 12 2 . Brawler 1 | . . . . . . . . 1 . . Duelist 4 | . . . . . 3 . . 1 . . Sentry 6 | . . . . . 5 . . 1 . . Specialist 3 | . . . . . . . 1 2 . . Hunter 3 | . . . . . 1 . . 1 1 . Programmer 3 | . . . . . . . . . 3 . Best Kill Streak 6 | . 3 3 . . 5 . 6 4 2 . Combat Bots Only 6 | . 3 3 . . 4 . 6 4 2 . Max Kills in Single Turn 3 | . 2 1 . . 3 . 1 2 1 . Gunslinging . | . . . . . . . . . . . Exploded 3 | . . . . . 3 . . . . . Melee 1 | . . . . . . . . . 1 . Uniques/NPCs Destroyed . | . . . . . . . . . . . Combat | -11 -10 -10 -10 -9 -8 -7 -7 -7 -6 -6 -------- Run | Yrd Mat Min Exi Min Mat Fac DSF Gar Fac Ext Hostile Shots Fired 984 | . 81 9 . . 191 . 53 274 373 3 Missed 304 | . 20 4 . . 47 . 17 78 138 . Damage Taken 8522 | . 532 44 . . 2521 . 583 2003 2698 141 Core 1704 | . 114 28 . . 430 . 45 233 721 133 Absorbed by Shields . | . . . . . . . . . . . Ignored by Resistances 78 | . . . . . . . . . 78 . Regen/Repaired (Parts) 35 | . . . . . 35 . . . . . Core Remaining (%) 56 | 100 . . . 43 21 . . 60 . . Volleys Fired 286 | . 51 4 . . 116 . 16 62 37 . Largest 3 | . 2 2 . . 2 . 3 3 3 . Hottest 171 | . 40 40 . . 110 . 171 171 112 . Shots Fired 609 | . 102 8 . . 228 . 49 150 72 . Gun 391 | . 102 8 . . 227 . 9 . 45 . Cannon 213 | . . . . . . . 40 150 23 . Launcher . | . . . . . . . . . . . Special 5 | . . . . . 1 . . . 4 . Kinetic 490 | . 102 8 . . 122 . 40 150 68 . Thermal 115 | . . . . . 106 . 9 . . . Explosive . | . . . . . . . . . . . Electromagnetic . | . . . . . . . . . . . Robot Hit Streak 20 | . 8 2 . . 20 . 9 11 19 . Robot Miss Streak 5 | . 5 2 . . 3 . 5 4 2 . Penetration Max 1 | . . . . . . . . 1 . . Secondary Targets 7 | . 3 1 . . 3 . . . . . Max Gunslinging Chain 1 | . 1 1 . . 1 . . . . . Shots Hit Robots 389 | . 62 4 . . 172 . 23 76 52 . Core Hits 161 | . 29 3 . . 78 . 12 24 13 2 Critical Kills 2 | . 1 . . . 1 . . . . . Critical Parts Destroyed 3 | . 3 . . . . . . . . . Critical Strikes 27 | . 4 . . . 5 . 4 12 2 . Burn 5 | . . . . . 4 . 1 . . . Destroy 5 | . 4 . . . 1 . . . . . Blast 17 | . . . . . . . 3 12 2 . Melee Attacks . | . . . . . . . . . . . Impact . | . . . . . . . . . . . Slashing . | . . . . . . . . . . . Piercing . | . . . . . . . . . . . Sneak Attacks . | . . . . . . . . . . . Combat Hostiles . | . . . . . . . . . . . Follow-up Attacks . | . . . . . . . . . . . Damage Inflicted 8453 | . 650 41 . . 3115 . 796 2608 1211 32 Guns 4242 | . 650 41 . . 2827 . 116 . 608 . Cannons 3676 | . . . . . . . 680 2608 388 . Explosions 413 | . . . . . 259 . . . 154 . Melee . | . . . . . . . . . . . Ramming 122 | . . . . . 29 . . . 61 32 Kinetic 6294 | . 650 41 . . 1319 . 680 2608 996 . Thermal 2037 | . . . . . 1767 . 116 . 154 . Explosive . | . . . . . . . . . . . Electromagnetic . | . . . . . . . . . . . Impact . | . . . . . . . . . . . Slashing . | . . . . . . . . . . . Piercing . | . . . . . . . . . . . Highest Corruption 13 | . . . . . 3 . 3 13 4 4 Average Corruption 3 | . . . . . 3 . 3 4 3 4 Corruption Purged . | . . . . . . . . . . . Corruption Blocked . | . . . . . . . . . . . Effects 92 | . . . . . 13 . 3 44 30 2 Message Errors 25 | . . . . . 3 . . 15 7 . Matter Fused 21 | . . . . . 5 . 1 9 5 1 Heat Flow Errors 11 | . . . . . . . . 8 3 . Energy Discharges 12 | . . . . . 2 . 1 4 4 1 Parts Rejected 1 | . . . . . . . . . 1 . Parts Fused 2 | . . . . . . . . 1 1 . Data Loss (minor) 10 | . . . . . 2 . . 5 3 . Data Loss (major) 4 | . . . . . 1 . . . 3 . Misfires 3 | . . . . . . . 1 1 1 . Alerts 1 | . . . . . . . . . 1 . Weapon Failures 2 | . . . . . . . . 1 1 . Overload Shots . | . . . . . . . . . . . Overflow Damage 131 | . . . . . 91 . . 7 33 . Projectiles 40 | . . . . . . . . 7 33 . Explosions 91 | . . . . . 91 . . . . . Melee . | . . . . . . . . . . . Knockbacks 21 | . . . . . . . 5 11 5 . Impact . | . . . . . . . . . . . Kinetic 20 | . . . . . . . 5 10 5 . Secondary 1 | . . . . . . . . 1 . . Self-Inflicted Damage 210 | . . . . . 191 . . . 4 15 Shots 2 | . . . . . 2 . . . . . Rammed 16 | . . . . . 1 . . . 8 7 Targets Rammed 21 | . . . . . 5 . . . 9 7 Kicked 3 | . . . . . 3 . . . . . Crushed 2 | . . . . . 1 . . . 1 . Highest Temperature 474 | . 12 . . . 350 . 81 418 474 . Average Temperature 116 | . 6 . . . 85 . 28 158 192 . Received Heat Transfer 2340 | . 42 . . . 1017 . 117 477 675 12 Effects 18 | . . . . . 3 . . 14 1 . Shutdowns 7 | . . . . . 2 . . 5 . . Energy Bleed 2 | . . . . . 1 . . 1 . . Interference 6 | . . . . . . . . 6 . . Matter Decay 1 | . . . . . . . . 1 . . Short Circuit 1 | . . . . . . . . 1 . . Damage (minor) 1 | . . . . . . . . . 1 . Siege Activations . | . . . . . . . . . . . Robots Corrupted . | . . . . . . . . . . . Combat Hostiles . | . . . . . . . . . . . Parts Fried . | . . . . . . . . . . . Impact Corruptions . | . . . . . . . . . . . Robots Melted . | . . . . . . . . . . . Combat Hostiles . | . . . . . . . . . . . Parts Melted 5 | . . . . . 4 . . . 1 . Heat Transferred 3802 | . . . . . 3406 . 296 . 100 . Parts Sabotaged . | . . . . . . . . . . . Parts Stolen . | . . . . . . . . . . . Parts Stripped . | . . . . . . . . . . . Power Chain Reactions . | . . . . . . . . . . . Alert | -11 -10 -10 -10 -9 -8 -7 -7 -7 -6 -6 ------- Run | Yrd Mat Min Exi Min Mat Fac DSF Gar Fac Ext Peak Influence 1081 | . 242 99 . . 389 176 375 1081 657 212 Initial 567 | . . 29 . . . 176 123 281 567 137 Average 296 | . 64 89 . . 176 176 245 611 369 151 Maximum Alert Level 3 | . 1 . . . 1 . 1 3 2 1 Low Security (%) 40 | 100 98 100 . 100 55 100 47 . 3 90 Level 1 35 | . 1 . . . 44 . 52 29 58 9 Level 2 17 | . . . . . . . . 34 38 . Level 3 7 | . . . . . . . . 35 . . Level 4 . | . . . . . . . . . . . Level 5 . | . . . . . . . . . . . High Security . | . . . . . . . . . . . Max Security . | . . . . . . . . . . . Sterilizations 1 | . . . . . . . 1 . . . Squads Dispatched 17 | . 3 . . . 6 1 1 . 6 . Investigation 7 | . 2 . . . 3 1 . . 1 . Extermination 4 | . . . . . . . . . 4 . Reinforcement 6 | . 1 . . . 3 . 1 . 1 . Assault . | . . . . . . . . . . . Garrison . | . . . . . . . . . . . Intercept . | . . . . . . . . . . . Searches Triggered . | . . . . . . . . . . . Construction Impeded . | . . . . . . . . . . . Haulers Reinforced . | . . . . . . . . . . . Active Scanning Responses . | . . . . . . . . . . . Cargo Convoy Interrupts 1 | . . . . . . . . . 1 . Stealth | -11 -10 -10 -10 -9 -8 -7 -7 -7 -6 -6 --------- Run | Yrd Mat Min Exi Min Mat Fac DSF Gar Fac Ext Distress Signals 10 | . 2 . . . 7 . . . 1 . Communications Jammed . | . . . . . . . . . . . Distress Signals . | . . . . . . . . . . . Times Spotted 129 | . 21 3 . . 50 . 12 20 19 4 Peak Tracking Total 9 | . 5 3 . . 7 . 4 6 9 4 Tactical Retreats 14 | . 1 . . . 3 . 1 2 5 2 Traps | -11 -10 -10 -10 -9 -8 -7 -7 -7 -6 -6 ------- Run | Yrd Mat Min Exi Min Mat Fac DSF Gar Fac Ext Traps Triggered 8 | . 2 . . . 2 . . 3 1 . Indirectly . | . . . . . . . . . . . Trap Hack Attempts . | . . . . . . . . . . . Triggered . | . . . . . . . . . . . Disarmed . | . . . . . . . . . . . Reprogrammed . | . . . . . . . . . . . Reused . | . . . . . . . . . . . Traps Extracted . | . . . . . . . . . . . Installed . | . . . . . . . . . . . Triggered 1 | . . . . . . . . . 1 . Machines | -11 -10 -10 -10 -9 -8 -7 -7 -7 -6 -6 ---------- Run | Yrd Mat Min Exi Min Mat Fac DSF Gar Fac Ext Machines Disabled 9 | . . . . . 2 . 2 3 2 . Max in Single Turn 2 | . . . . . 2 . 1 1 2 . Garrison Relay 2 | . . . . . . . . 2 . . Machines Repaired . | . . . . . . . . . . . Machines Dismantled . | . . . . . . . . . . . Machines Sabotaged . | . . . . . . . . . . . Overloaded Fab Kills . | . . . . . . . . . . . Hacking | -11 -10 -10 -10 -9 -8 -7 -7 -7 -6 -6 --------- Run | Yrd Mat Min Exi Min Mat Fac DSF Gar Fac Ext Machines Accessed 18 | . 6 . 1 . 5 1 . 1 4 . Terminals 12 | . 4 . . . 3 1 . 1 3 . Fabricators . | . . . . . . . . . . . Repair Stations 1 | . . . . . 1 . . . . . Recycling Units 4 | . 2 . . . 1 . . . 1 . Scanalyzers . | . . . . . . . . . . . Garrison Access . | . . . . . . . . . . . Total Hacks 40 | . 13 . 1 . 14 3 . 2 7 . Successful 19 | . 6 . 1 . 6 1 . 1 4 . Failed 20 | . 6 . . . 8 2 . 1 3 . Catastrophic 1 | . . . . . 1 . . . . . Database Lockouts 1 | . 1 . . . . . . . . . Manual 12 | . 8 . 2 . . . . . 2 . Terminals 23 | . 8 . . . 6 3 . 2 4 . Fabricators . | . . . . . . . . . . . Repair Stations 3 | . . . . . 3 . . . . . Recycling Units 13 | . 5 . . . 5 . . . 3 . Scanalyzers . | . . . . . . . . . . . Garrison Access . | . . . . . . . . . . . Terminal Hacks 11 | . 2 . 1 . 3 1 . 1 3 . Robot Analysis 1 | . 1 . . . . . . . . . Prototype ID Bank 4 | . 1 . . . 2 . . . 1 . Open Door 1 | . . . . . . . . . 1 . Open DSF 2 | . . . . . . 1 . . 1 . Registered Components 1 | . . . . . 1 . . . . . Patrol Navigation 1 | . . . . . . . . 1 . . Derelict Proto ID Bank 1 | . . . 1 . . . . . . . Fabricator Hacks . | . . . . . . . . . . . Repair Station Hacks 2 | . . . . . 2 . . . . . Scan Component 1 | . . . . . 1 . . . . . Repair 1 | . . . . . 1 . . . . . Recycling Unit Hacks 3 | . 1 . . . 1 . . . 1 . Report Inventory 1 | . . . . . 1 . . . . . Retrieve Components 2 | . 1 . . . . . . . 1 . Scanalyzer . | . . . . . . . . . . . Garrison Access Hacks . | . . . . . . . . . . . Unauthorized Hacks 3 | . 3 . . . . . . . . . Terminals 2 | . 2 . . . . . . . . . Botnet 2 | . 2 . . . . . . . . . Fabricators . | . . . . . . . . . . . Repair Stations . | . . . . . . . . . . . Recycling Units 1 | . 1 . . . . . . . . . Reject 1 | . 1 . . . . . . . . . Scanalyzers . | . . . . . . . . . . . Garrison Access . | . . . . . . . . . . . Data Cores Recovered 2 | . 2 . . . . . . . . . Used 1 | . 1 . . . . . . . . . Hacking Detections 11 | . 3 . . . 4 1 . 1 2 . Full Trace Events 4 | . 1 . . . 1 1 . . 1 . Feedback Events . | . . . . . . . . . . . Feedback Blocked . | . . . . . . . . . . . Robot Schematics Acquired . | . . . . . . . . . . . Robots Built . | . . . . . . . . . . . Authchips . | . . . . . . . . . . . Time . | . . . . . . . . . . . Total Robot Build Rating . | . . . . . . . . . . . Part Schematics Acquired . | . . . . . . . . . . . Parts Built . | . . . . . . . . . . . Authchips . | . . . . . . . . . . . Time . | . . . . . . . . . . . Total Part Build Rating . | . . . . . . . . . . . Parts Repaired 1 | . . . . . 1 . . . . . Time 38 | . . . . . 38 . . . . . Parts Recycled . | . . . . . . . . . . . Recycled Matter . | . . . . . . . . . . . Retrieved Matter . | . . . . . . . . . . . Retrieved Components 5 | . 2 . . . . . . . 3 . Parts Scanalyzed . | . . . . . . . . . . . Part Schematics Acquired . | . . . . . . . . . . . Parts Damaged . | . . . . . . . . . . . Bothacking | -11 -10 -10 -10 -9 -8 -7 -7 -7 -6 -6 ------------ Run | Yrd Mat Min Exi Min Mat Fac DSF Gar Fac Ext Used RIF Installer . | . . . . . . . . . . . Robots Hacked 2 | . . . . . . . . . 2 . Non-combat 1 | . . . . . . . . . 1 . Combat 1 | . . . . . . . . . 1 . Robot Hacks Applied 4 | . . . . . . . . . 4 . parse_system 2 | . . . . . . . . . 2 . no_distress 1 | . . . . . . . . . 1 . find_recycling 1 | . . . . . . . . . 1 . Relay Couplers Released 9 | . . . . . . . . 9 . . Machine Destruction 9 | . . . . . . . . 9 . . Fabnet Peak Effective % . | . . . . . . . . . . . Robots Rewired . | . . . . . . . . . . . Allies Hacked . | . . . . . . . . . . . Hacks Repelled . | . . . . . . . . . . . Allies | -11 -10 -10 -10 -9 -8 -7 -7 -7 -6 -6 -------- Run | Yrd Mat Min Exi Min Mat Fac DSF Gar Fac Ext Total Allies . | . . . . . . . . . . . Largest Group . | . . . . . . . . . . . Highest-Rated Group . | . . . . . . . . . . . Highest-Rated Ally . | . . . . . . . . . . . Total Orders . | . . . . . . . . . . . Ally Attacks . | . . . . . . . . . . . Total Damage . | . . . . . . . . . . . Kills . | . . . . . . . . . . . Allies Corrupted . | . . . . . . . . . . . Allies Melted . | . . . . . . . . . . . Intel | -11 -10 -10 -10 -9 -8 -7 -7 -7 -6 -6 ------- Run | Yrd Mat Min Exi Min Mat Fac DSF Gar Fac Ext Robot Analysis Total 1 | . 1 . . . . . . . . . Derelict Logs Recovered 1 | . . . . 1 . . . . . . Drone Launches . | . . . . . . . . . . . Drone Recoveries . | . . . . . . . . . . . Exploration | -11 -10 -10 -10 -9 -8 -7 -7 -7 -6 -6 ------------- Run | Yrd Mat Min Exi Min Mat Fac DSF Gar Fac Ext Turns Passed 9347 | 60 1484 200 367 45 2276 44 449 1874 2294 254 Spaces Moved 4125 | 35 673 116 229 29 861 26 176 514 1065 401 Core 824 | 6 . . . . . . . . 417 401 Treads 2754 | 29 673 116 229 29 314 26 176 514 648 . Legs 389 | . . . . . 389 . . . . . Wheels 157 | . . . . . 157 . . . . . Hover 1 | . . . . . 1 . . . . . Flight . | . . . . . . . . . . . Fastest Speed 50 | 50 160 160 160 160 105 165 165 165 50 50 Average Speed 167 | 141 160 160 160 160 177 165 186 244 172 50 Slowest Speed 470 | 160 160 160 160 160 470 165 245 246 325 50 Overloaded Moves . | . . . . . . . . . . . Propulsion Burnouts . | . . . . . . . . . . . Robots Hopped . | . . . . . . . . . . . Cave-ins Triggered 1 | . . . . . . . . 1 . . Exploration Rate (%) 39 | 4 93 34 64 16 53 1 91 41 18 24 Regions Visited 10 Branch Regions 4 Pre-discovered Areas . | . . . . . . . . . . . Known Exits Taken 2 | . . . . . 1 1 . . . . Unknown Exits Taken 6 | 1 1 1 1 1 . . . . 1 . Scrap Searched . | . . . . . . . . . . . Spaces Dug 19 | . . . . . 1 . . 10 8 . Terrain Destroyed 126 | . . . . . 33 . 8 41 44 . Melee . | . . . . . . . . . . . Projectile 63 | . . . . . 1 . 8 41 13 . AOE 63 | . . . . . 32 . . . 31 . Terrain Rammed . | . . . . . . . . . . . Walls Destroyed . | . . . . . . . . . . . Machines Disabled . | . . . . . . . . . . . Actions | -11 -10 -10 -10 -9 -8 -7 -7 -7 -6 -6 --------- Run | Yrd Mat Min Exi Min Mat Fac DSF Gar Fac Ext Total 6044 | 43 990 124 230 28 1406 27 270 1010 1462 454 Wait 1283 | 3 240 1 . . 281 . 22 404 285 47 Move 4115 | 34 672 115 228 28 860 25 175 513 1064 401 Hop . | . . . . . . . . . . . Pick Up 80 | . 11 1 1 . 31 . 13 3 20 . Fast Attach 57 | 6 1 . . . 29 . 9 6 6 . Attach 26 | . . 1 . . 7 2 2 1 13 . Detach 20 | . . . . . 6 . 3 1 10 . Swap 52 | . 7 1 . . 22 . 7 8 7 . Drop 101 | . 8 1 1 . 49 . 23 8 11 . Fire 286 | . 51 4 . . 116 . 16 62 37 . Melee . | . . . . . . . . . . . Ram 10 | . . . . . . . . . 4 6 Kick 3 | . . . . . 3 . . . . . Crush 7 | . . . . . 2 . . . 5 . Escape Stasis 4 | . . . . . . . . 4 . . Rewire . | . . . . . . . . . . . Trap . | . . . . . . . . . . . Miscellaneous . | . . . . . . . . . . . Route ------- -11/Scrapyard -10/Materials (discovered 4 exits: [*Mat x2] / [*Min x2]) -10/Mines -10/Exiles (discovered 2 exits: [*Min x2]) -9/Mines -8/Materials (discovered 3 exits: *Fac x2 / [*Sto]) -7/Factory -7/DSF -7/Garrison -6/Factory -6/Extension History --------- Turn | Location | Event 2 | -11/Scrapyard | Met Revision 17 11 | -11/Scrapyard | Discovered new exit (range 16) 61 | -11/Scrapyard | Entered Materials 318 | -10/Materials | Build established: Mutant 453 | -10/Materials | Discovered new exit (range 12) 538 | -10/Materials | Discovered new exit (range 14) 785 | -10/Materials | Discovered new exit (range 9) 1129 | -10/Materials | Central database locked down 1364 | -10/Materials | Discovered new exit (range 16) 1545 | -10/Materials | Entered Mines 1567 | -10/Mines | Core integrity fell below 50% 1679 | -10/Mines | Assembled infested the area 1739 | -10/Mines | Deemed a non-threat by the Exiles lab entrance 1739 | -10/Mines | Discovered new exit (range 5) 1745 | -10/Mines | Entered Exiles 1766 | -10/Exiles | Discovered new exit (range 15) 1784 | -10/Exiles | Met 8R-AWN 1813 | -10/Exiles | Met EX-HEX 1861 | -10/Exiles | Met EX-BIN 1883 | -10/Exiles | Aligned with FarCom system 1885 | -10/Exiles | Given EX-Vault access code 1933 | -10/Exiles | Opened EX-Vault 1949 | -10/Exiles | Found Cloak of Protection 1985 | -10/Exiles | Warned to stay clear of 0b10 Research branches 2035 | -10/Exiles | Met EX-DEC 2099 | -10/Exiles | Discovered new exit (range 10) 2112 | -10/Exiles | Left Exiles lab with Cloak of Protection 2112 | -10/Exiles | Entered Mines 2126 | -9/Mines | Met a Derelict bent on vengeance 2135 | -9/Mines | Learned location of 1 exit from Materials 2141 | -9/Mines | Discovered new exit (range 9) 2157 | -9/Mines | Entered Materials 2157 | -8/Materials | Evolved 4 slots: Power x1, Propulsion x2, Utility x1 2158 | -8/Materials | Identified exit to Factory 2861 | -8/Materials | Lost 4 parts (2n1u1w) 2879 | -8/Materials | Core integrity fell below 50% 2925 | -8/Materials | Lost 5 parts (1p2n1u1w) 3288 | -8/Materials | Build established: Scavenger-Mutant 3330 | -8/Materials | Repaired Carbon-fiber Leg 3863 | -8/Materials | Discovered new exit (range 9) 4388 | -8/Materials | Discovered exit to Factory (range 8) 4433 | -8/Materials | Entered Factory 4433 | -7/Factory | Evolved 2 slots: Utility x1, Weapon x1 4475 | -7/Factory | Identified exit to DSF 4477 | -7/Factory | Entered DSF 4478 | -7/DSF | Joined Warlord attack on 0b10 via DSF 4497 | -7/DSF | Additional patrols routed to DSF 4536 | -7/DSF | Lost 5 allies 4770 | -7/DSF | Discovered new exit (range 14) 4781 | -7/DSF | Build established: Skirmisher 4803 | -7/DSF | Found Powered Armor 4806 | -7/DSF | Found Powered Armor 4823 | -7/DSF | Sterilization system engaged 4843 | -7/DSF | Ambient heat levels rising (+10) 4858 | -7/DSF | Ambient heat levels rising (+10) 4873 | -7/DSF | Ambient heat levels rising (+10) 4888 | -7/DSF | Ambient heat levels rising (+10) 4903 | -7/DSF | Ambient heat levels rising (+10) 4918 | -7/DSF | Ambient heat levels rising (+10) 4926 | -7/DSF | Entered Garrison 5470 | -7/Garrison | Triggered checkpoint 5644 | -7/Garrison | Triggered checkpoint 5769 | -7/Garrison | Garrison Relay disabled 6053 | -7/Garrison | Spotted B-75 Beast 6055 | -7/Garrison | Garrison Relay disabled 6358 | -7/Garrison | Triggered checkpoint 6408 | -7/Garrison | Triggered checkpoint 6448 | -7/Garrison | Crushed by falling debris 6448 | -7/Garrison | System corruption reached 10% 6496 | -7/Garrison | Lost 4 parts (1n1u2w) 6775 | -7/Garrison | Discovered new exit (range 11) 6800 | -7/Garrison | Entered Factory 6800 | -6/Factory | Evolved 2 slots: Utility x2 7380 | -6/Factory | Build established: Hauler-Skirmisher 7871 | -6/Factory | Cargo convoy interrupted 8827 | -6/Factory | Core integrity fell below 50% 8840 | -6/Factory | Core integrity fell below 20% 8859 | -6/Factory | Lost 8 parts (1p3n3u1w) 9084 | -6/Factory | Discovered new exit (range 10) 9094 | -6/Factory | Entered Extension 9113 | -6/Extension | Build established: Mutant 9144 | -6/Extension | Spotted B-75 Beast 9256 | -6/Extension | Spotted B-75 Beast 9348 | -6/Extension | Core destroyed Last Messages --------------- 09084_ Connecting with Door Terminal... >>Open(Door) Sealed Blast Doors opened. 09084_ EXIT=FOUND LOCATION=UNKNOWN GOAL=ESCAPE 09094_ Receiving FarCom transmissions... 09096_ K-01 Serf exits Transfer Station. 09176_ Slammed into U-05 Engineer. 09204_ System corrupted: Matter fused (-7). 09215_ T-07 Excavator exits Transfer Station. 09307_ System corrupted: Energy discharge (-37). 09309_ K-01 Serf enters Transfer Station. 09317_ U-05 Engineer exits Transfer Station. 09317_ K-01 Serf exits Transfer Station. 09320_ R-10 Processor enters Transfer Station. 09336_ K-01 Serf exits Transfer Station. 09341_ R-10 Processor exits Transfer Station. 09343_ Slammed into R-10 Processor. 09348_ Destabilizing: Core damaged (-42). Map ----- +----------------------------------------------------+ | ?????# !=???????????????????? | | ?????# ?????????????????????? | | ?????# ???????????????????????? | | ?????# #????????????????????????? | | ?????# #????????????????????????? | | ?????# #????????????????????????? | | ?????# #????????????????????????? | | ?????# #????????????????????????? | | ?????# #????????????????????????? | | ?????# #????????????????????????? | | ?????# #????????????????????????? | | ?????# #????????????????????????? | | ?????# #????????????????????????? | | ?????# #????????????????????????? | | ?????# #????????????????????????? | | ?????# #????????????????????????? | | ?????# #????????????????????????? | | ?##### #####????????????????????? | | ?# "" "" #????????????????????? | | ?# " " ###################### | | ?# u | | ?# R | | ?# | | ?# R | | ?# R Ru | | ?# @ ###################### | | ?# u #????????????????????? | | ?###" "###????????????????????? | | ???#" "#??????????????????????? | | ???#"""""#??????????????????????? | | ???#######??????????????????????? | | ????????????????????????????????? | | ????????????????????????????????? | | | | | | | | | | | | | | | | | | | | | | | | | | | | | | | | | | | +----------------------------------------------------+ Best States ------------- Heat Dissipation 68 Energy Generation 38 Energy Capacity 490 Matter Stores 300 Matter Capacity 300 Sight Range 22 Terrain Scan Range 20 Terrain Scan Density 210 Cloak Strength 5 Additional Mass Support 9 Armor Coverage 800 Resistance: KI 20 Core Shielding 20 Utility Shielding 33 Evasion (%) 50 Targeting Accuracy 8 Recoil Reduction 4 Offensive Hacking 10 Item Schematics ----------------- None Robot Schematics ------------------ None Fabricated ------------ Nothing Alien Tech Used ----------------- None Achievements -------------- None Challenges ------------ None Game ------ Seed StorageCompactGuard Manual? 0 Play Time 01:12:43 Cumulative 65.1 hours Start 2024.05.26 @ 20:56:00 End 2024.05.26 @ 22:20:55 Sessions 1 Manual Loads 0 Difficulty Rogue Special Mode None Game No. 73 Rogue 67 Adventurer 6 Explorer 0 Win Type - Total 0 Types 0/0/0/0/0/0/0/0/0 Lore% 26 Gallery% 43 Achievement% 32 Wizard Run 0 Options --------- Layout 0 ASCII 0 Keyboard 1 Movement Numpad Keybinds 0 Fullscreen 0 Font 12/Smallcaps Map View 76x50 Zoom Use 0% Tactical HUD 1 Map Filters NONE Filters NONE Steam 1 RUN: 011bdd83-87b9-4837-8aaa-7afb11c32bc4